fUSD/lending_fUSD_20260227
["ID","MTS","AMOUNT","RATE_DAILY","PERIOD"]
[406757119,1772160643454,-152.8213546,0.00025598,2]
[406757120,1772160643463,-200.0,0.00025815,11]
[406757121,1772160643474,-326285.28373726,0.00025876,2]
[406757122,1772160643493,-6447.22708204,0.00025876,2]
[406757123,1772160643504,-393.03903894,0.00025876,2]
[406757124,1772160643515,-1650.0,0.00025876,2]
[406757125,1772160643527,-32081.29590436,0.00025876,2]
[406757126,1772160643537,-150.0,0.0002589,2]
[406757127,1772160643547,-496.57803151,0.0002598,14]
[406757128,1772160643557,-608.97439838,0.00026044,21]
[406757129,1772160643567,-259.66,0.00026204,2]
[406757132,1772160643648,-392.86189832,0.00026223,15]
[406757134,1772160643658,-504.0,0.00026306,12]
[406757136,1772160643668,-19300.54734157,0.00026341,2]
[406757137,1772160643678,-152.8213546,0.00026481,2]
[406757138,1772160643687,-174.00015664,0.000266,30]
[406757139,1772160643697,-160.0,0.000266,30]
[406757140,1772160643707,-40473.67587305,0.00026706,2]
[406757141,1772160643717,-657.28749281,0.00026878,24]
[406757142,1772160643727,-550.0,0.00027,2]
[406757143,1772160643736,-418.42630855,0.00027044,16]
[406757144,1772160643746,-150.0,0.00027185,2]
[406757145,1772160643755,-313.08689545,0.0002732,2]
[406757146,1772160643766,-152.8213546,0.00027363,2]
[406757147,1772160643775,-150.0,0.00027369,2]
[406757148,1772160643785,-1000.0,0.00027397,20]
[406757149,1772160643794,-300.0,0.00027397,2]
[406757150,1772160643804,-436.531565,0.00027739,2]
[406757151,1772160643814,-3498.0,0.00027811,2]
[406757152,1772160643824,-1041.0,0.00027811,2]
[406757153,1772160643833,-618.0,0.00027811,2]
[406757154,1772160643842,-1340.0,0.00027811,2]
[406757155,1772160643852,-921.0,0.00027811,2]
[406757156,1772160643862,-413.0,0.00027811,2]
[406757157,1772160643872,-5983.0,0.00027811,2]
[406757158,1772160643882,-2456.0,0.00027811,2]
[406757159,1772160643891,-537.34,0.0002783,30]
[406757160,1772160643901,-420.10609826,0.00027866,17]
[406757161,1772160643910,-152.8213546,0.00028246,2]
[406757162,1772160643920,-690.06891052,0.00028333,18]
[406757163,1772160643929,-239.25706158,0.00028454,2]
[406757164,1772160643938,-504.0,0.00028543,14]
[406757165,1772160643948,-150.0,0.00028544,2]
[406757166,1772160643957,-705.60058736,0.00028547,27]
[406757167,1772160643966,-443.99071889,0.00028687,18]
[406757168,1772160643976,-19300.54734157,0.00028917,2]
[406757169,1772160643985,-600.0,0.00029,2]
[406757170,1772160643995,-152.82135465,0.00029129,2]
[406757171,1772160644004,-200.0,0.00029266,20]
[406757172,1772160644014,-296.61399423,0.00029382,2]
[406757173,1772160644023,-830.45295709,0.00029382,2]
[406757174,1772160644033,-311.59,0.00029403,2]
[406757175,1772160644042,-469.55512923,0.00029508,20]
[406757176,1772160644051,-40473.67587305,0.00029755,2]
[406757177,1772160644060,-5741.61845529,0.00030056,2]
[406757178,1772160644069,-152.0,0.00030616,3]
[406757179,1772160644080,-537.34,0.00030714,30]
[406757180,1772160644089,-504.0,0.00030781,16]
[406757181,1772160644099,-3168.519,0.00030811,2]
[406757182,1772160644109,-1041.0,0.00030811,2]
[406757183,1772160644122,-618.0,0.00030811,2]
[406757184,1772160644131,-1340.0,0.00030811,2]
[406757185,1772160644140,-921.0,0.00030811,2]
[406757186,1772160644151,-413.0,0.00030811,2]
[406757187,1772160644161,-5983.0,0.00030811,2]
[406757188,1772160644170,-2456.0,0.00030811,2]
[406757189,1772160644180,-150.79874685,0.000309,30]
[406757190,1772160644190,-908.39909848,0.00031049,30]
[406757191,1772160644199,-179.73,0.000314,30]
[406757192,1772160644209,-500.0,0.00031486,2]
[406757193,1772160644218,-19300.54734157,0.00031494,2]
[406757194,1772160644227,-945.37111069,0.00031884,30]
[406757195,1772160644237,-570.86299031,0.00031972,23]
[406757196,1772160644246,-906.66,0.00032,120]
[406757197,1772160644256,-1104.8,0.00032,120]
[406757198,1772160644265,-436.531565,0.00032265,2]
[406757199,1772160644275,-2000.0,0.000327,2]
[406757200,1772160644285,-1107.32345218,0.00032718,30]
[406757201,1772160644294,-656.55851761,0.00032793,25]
[406757202,1772160644304,-40473.67587305,0.00032803,2]
[406757203,1772160644313,-1752.38,0.00033,14]
[406757204,1772160644324,-7206.53,0.00033,14]
[406757205,1772160644333,-5510.82,0.00033,14]
[406757206,1772160644343,-12525.55,0.00033,2]
[406757207,1772160644352,-150.0,0.00033,14]
[406757208,1772160644361,-504.0,0.00033018,18]
[406757209,1772160644372,-1230.28016527,0.00033552,30]
[406757210,1772160644381,-537.34,0.00033598,30]
[406757211,1772160644391,-721.61988237,0.00033614,26]
[406757212,1772160644400,-1041.0,0.00033811,2]
[406757213,1772160644410,-618.0,0.00033811,2]
[406757214,1772160644420,-683.529,0.00033811,2]
[406757215,1772160644430,-921.0,0.00033811,2]
[406757216,1772160644440,-413.0,0.00033811,2]
[406757217,1772160644449,-5983.0,0.00033811,2]
[406757218,1772160644458,-2456.0,0.00033811,2]
[406757219,1772160644468,-9107.98863268,0.00034,120]
[406757220,1772160644477,-160.0,0.00034,120]
[406757221,1772160644487,-19300.54734157,0.0003407,2]
[406757222,1772160644496,-20000.0,0.0003427,2]
[406757223,1772160644506,-1306.24780588,0.00034386,30]
[406757224,1772160644516,-761.81743036,0.00034435,27]
[406757225,1772160644526,-172.0,0.00034453,120]
[406757226,1772160644535,-5741.61845529,0.00034704,2]
[406757227,1772160644544,-1200.58309709,0.00034795,2]
[406757228,1772160644553,-572.0,0.00034842,2]
[406757229,1772160644563,-271.0,0.00034842,2]
[406757230,1772160644572,-37981.37146281,0.0003488,120]
[406757231,1772160644581,-646.0,0.0003492,2]
[406757232,1772160644591,-150.0,0.0003492,2]
[406757233,1772160644600,-195.0,0.0003492,2]
[406757234,1772160644610,-136471.72711384,0.0003498,2]
[406757235,1772160644630,-1015.15971003,0.0003498,2]
[406757236,1772160644641,-998.9063611,0.0003498,2]
[406757237,1772160644652,-11464.46976567,0.0003498,2]
[406757238,1772160644664,-9384.62838452,0.0003498,2]
[406757239,1772160644675,-6456.76566377,0.0003498,2]
[406757240,1772160644687,-9219.2,0.0003498,2]
[406757241,1772160644699,-2833.845,0.0003498,2]
[406757244,1772160645817,-150.0,0.00029971,2]
[406757245,1772160645826,-150.0,0.0003147,2]
[406757246,1772160645835,-1107.0,0.00034704,30]
[406757247,1772160645845,-556894.54600239,0.0003498,2]
[406757248,1772160645856,-18552.20700953,0.0003498,2]
[406757249,1772160645868,-11277.81555068,0.0003498,2]
[406757250,1772160645881,-12678.21375174,0.0003498,2]
[406757251,1772160645894,-904.64662748,0.0003498,2]
[406757252,1772160645911,-808.00460389,0.0003498,2]
[406757253,1772160646083,-150.0,0.00033043,2]
[406757254,1772160646093,-2900.08555399,0.0003498,2]
[406757255,1772160646105,-90795.50919223,0.0003498,2]
[406757256,1772160646121,-4615.19972896,0.0003498,2]
[406757257,1772160646133,-5819.39731802,0.0003498,2]
[406757258,1772160646143,-6963.88419582,0.0003498,2]
[406757259,1772160646155,-481.87634287,0.0003498,2]
[406757273,1772161011413,783.85,6.145e-05,2]
[406757274,1772161011607,783.85,6.41e-05,2]
[406757285,1772161417706,500.0,8.361e-05,3]
[406757291,1772161663270,181.0,0.0001,120]
[406757292,1772161665520,181.0,0.0001,120]
[406757310,1772161832060,-783.85,6.675e-05,2]
[406757311,1772161832070,-5000.0,6.741e-05,2]
[406757312,1772161832080,-250.0,6.807e-05,2]
[406757313,1772161832090,-783.85,6.939e-05,2]
[406757314,1772161832103,-1057.29,7.115e-05,2]
[406757315,1772161832112,-783.85,7.204e-05,2]
[406757316,1772161832122,-203.76331567,7.342e-05,2]
[406757317,1772161832132,-284.40408352,7.342e-05,2]
[406757318,1772161832141,-250.0,7.342e-05,2]
[406757319,1772161832151,-5000.0,7.342e-05,2]
[406757320,1772161832160,-783.85,7.469e-05,2]
[406757321,1772161832169,-783.85,7.733e-05,2]
[406757322,1772161832179,-300.0,7.823e-05,2]
[406757323,1772161832189,-1200.0,7.823e-05,2]
[406757324,1772161832198,-1271.0,7.824e-05,2]
[406757325,1772161832208,-319.0,7.824e-05,2]
[406757326,1772161832217,-414.0,7.839e-05,2]
[406757327,1772161832226,-220.0,7.907e-05,2]
[406757328,1772161832237,-767.0,7.955e-05,2]
[406757329,1772161832247,-456.0,7.955e-05,2]
[406757330,1772161832256,-365.0,7.971e-05,2]
[406757331,1772161832267,-578.0,7.974e-05,2]
[406757332,1772161832276,-551.0,7.987e-05,2]
[406757333,1772161832289,-300.0,7.989e-05,2]
[406757334,1772161832300,-1192.0,7.99e-05,2]
[406757335,1772161832309,-783.85,7.998e-05,2]
[406757336,1772161832319,-1633.0,8.006e-05,2]
[406757337,1772161832329,-1275.0,8.093e-05,2]
[406757338,1772161832338,-234.0,8.109e-05,2]
[406757339,1772161832348,-150.0,8.118e-05,2]
[406757340,1772161832357,-196492.98492062,8.119e-05,2]
[406757359,1772161838090,-500.0,8.119e-05,2]
[406757360,1772161838101,-172773.3289814,8.119e-05,2]
[406757361,1772161838254,-1630233.68609798,8.119e-05,2]
[406757362,1772161838275,-1669.0,8.125e-05,2]
[406757363,1772161838288,-18584.22995379,8.148e-05,2]
[406757386,1772161840265,-61426.67004621,8.148e-05,2]
[406757387,1772161840275,-357.346645,8.178e-05,2]
[406757388,1772161840284,-3253.2546004,8.178e-05,2]
[406757389,1772161840295,-6746.7353996,8.178e-05,2]
[406757390,1772161840305,-499.99,8.178e-05,2]
[406757391,1772161840315,-150.99,8.178e-05,2]
[406757392,1772161840324,-172.92107206,8.183e-05,2]
[406757393,1772161840334,-150.0,8.203e-05,2]
[406757394,1772161840343,-167.823616,8.219e-05,2]
[406757395,1772161840352,-9999.99,8.219e-05,2]
[406757396,1772161840361,-999.99,8.219e-05,2]
[406757397,1772161840371,-2177.34785212,8.219e-05,2]
[406757398,1772161840381,-875.50000001,8.219e-05,2]
[406757399,1772161840391,-3511.10186298,8.219e-05,2]
[406757400,1772161840402,-522.9232407,8.219e-05,2]
[406757401,1772161840417,-258.58127151,8.219e-05,2]
[406757402,1772161840427,-2041.30577268,8.219e-05,2]
[406757403,1772161840437,-249.08004898,8.219e-05,2]
[406757404,1772161840448,-2277.0831524,8.219e-05,2]
[406757405,1772161840545,-7473.82679862,8.219e-05,2]
[406757406,1772161840554,-9999.99,8.219e-05,2]
[406757407,1772161840564,-299.99,8.219e-05,2]
[406757408,1772161840574,-9999.99,8.219e-05,2]
[406757409,1772161840583,-5313.81,8.219e-05,2]
[406757410,1772161840592,-6862.49,8.24e-05,2]
[406757411,1772161840601,-783.85,8.263e-05,2]
[406757412,1772161840611,-11304.41,8.494e-05,2]
[406757413,1772161840620,-783.85,8.527e-05,2]
[406757414,1772161840630,-420.0,8.605e-05,2]
[406757415,1772161840645,-1680.0,8.605e-05,2]
[406757416,1772161840655,-6791.61,8.609e-05,2]
[406757417,1772161840663,-500.0,8.609e-05,2]
[406757418,1772161840674,-299.0,8.788e-05,2]
[406757419,1772161840683,-783.85,8.792e-05,2]
[406757420,1772161840693,-250.0,8.82e-05,2]
[406757421,1772161840703,-1406.0,8.823e-05,2]
[406757422,1772161840712,-500.0,8.883e-05,2]
[406757423,1772161840721,-394.874891,8.89e-05,2]
[406757424,1772161840731,-255.0,8.93e-05,2]
[406757425,1772161840741,-1398.0,9.009e-05,2]
[406757426,1772161840750,-783.85,9.056e-05,2]
[406757427,1772161840759,-500.0,9.157e-05,2]
[406757428,1772161840769,-783.85,9.321e-05,2]
[406757429,1772161840779,-209.77952,9.358e-05,2]
[406757430,1772161840788,-587.0,9.466e-05,2]
[406757431,1772161840797,-2351.0,9.466e-05,2]
[406757432,1772161840807,-783.85,9.586e-05,2]
[406757433,1772161840817,-255.95,9.798e-05,2]
[406757434,1772161840826,-205.0,9.8e-05,2]
[406757435,1772161840835,-1500.0,9.8e-05,3]
[406757436,1772161840844,-433.0,9.823e-05,2]
[406757437,1772161840853,-783.85,9.85e-05,2]
[406757438,1772161840863,-3000.0,9.9e-05,3]
[406757439,1772161840873,-1938.62788388,0.0001,2]
[406757440,1772161840882,-778.49833043,0.0001,2]
[406757441,1772161840891,-22880.53451892,0.0001,2]
[406757442,1772161840901,-151.0,0.0001,2]
[406757443,1772161840911,-151.0,0.0001,2]
[406757444,1772161840920,-151.0,0.0001,2]
[406757445,1772161840930,-151.0,0.0001,2]
[406757446,1772161840939,-151.0,0.0001,2]
[406757447,1772161840948,-151.0,0.0001,2]
[406757449,1772161840958,-151.0,0.0001,2]
[406757451,1772161840967,-151.0,0.0001,2]
[406757452,1772161840976,-151.0,0.0001,2]
[406757453,1772161840986,-151.0,0.0001,2]
[406757454,1772161840995,-151.0,0.0001,2]
[406757455,1772161841004,-151.0,0.0001,2]
[406757456,1772161841014,-151.0,0.0001,2]
[406757457,1772161841023,-151.0,0.0001,2]
[406757459,1772161841032,-151.0,0.0001,2]
[406757461,1772161841041,-151.0,0.0001,2]
[406757462,1772161841050,-151.0,0.0001,2]
[406757463,1772161841059,-151.0,0.0001,2]
[406757464,1772161841068,-151.0,0.0001,2]
[406757465,1772161841077,-151.0,0.0001,2]
[406757466,1772161841087,-151.0,0.0001,2]
[406757467,1772161841097,-151.0,0.0001,2]
[406757468,1772161841106,-151.0,0.0001,2]
[406757469,1772161841115,-151.0,0.0001,2]
[406757470,1772161841124,-151.0,0.0001,2]
[406757471,1772161841133,-151.0,0.0001,2]
[406757472,1772161841142,-151.0,0.0001,2]
[406757473,1772161841151,-151.0,0.0001,2]
[406757474,1772161841161,-151.0,0.0001,2]
[406757475,1772161841169,-151.0,0.0001,2]
[406757476,1772161841178,-151.0,0.0001,2]
[406757477,1772161841187,-151.0,0.0001,2]
[406757478,1772161841196,-151.0,0.0001,2]
[406757479,1772161841205,-151.0,0.0001,2]
[406757480,1772161841214,-151.0,0.0001,2]
[406757481,1772161841223,-151.0,0.0001,2]
[406757482,1772161841232,-151.0,0.0001,2]
[406757483,1772161841241,-151.0,0.0001,2]
[406757484,1772161841250,-151.0,0.0001,2]
[406757485,1772161841259,-151.0,0.0001,2]
[406757486,1772161841267,-4500.0,0.0001,3]
[406757487,1772161841276,-216.07799895,0.0001,2]
[406757488,1772161841286,-260.79707028,0.000101,2]
[406757489,1772161841295,-6744.6228,0.000101,2]
[406757490,1772161841303,-2500.0,0.000101,2]
[406757491,1772161841312,-783.85,0.00010115,2]
[406757492,1772161841321,-7776.0,0.00010164,2]
[406757493,1772161841329,-711.09667241,0.00010194,2]
[406757494,1772161841338,-151.0,0.00010197,2]
[406757495,1772161841347,-511.8103612,0.00010199,2]
[406757496,1772161841355,-500.0,0.00010199,2]
[406757497,1772161841364,-500.0,0.00010199,2]
[406757498,1772161841373,-500.0,0.00010199,2]
[406757499,1772161841382,-500.40537226,0.00010199,2]
[406757500,1772161841391,-500.0,0.00010199,2]
[406757501,1772161841400,-500.0,0.00010199,2]
[406757502,1772161841410,-500.0,0.00010199,2]
[406757503,1772161841419,-500.0,0.00010199,2]
[406757504,1772161841427,-416.07426308,0.00010199,2]
[406757505,1772161841436,-500.0,0.00010199,2]
[406757506,1772161841445,-500.0,0.00010199,2]
[406757507,1772161841454,-171.90231634,0.00010199,2]
[406757508,1772161841463,-500.0,0.00010199,2]
[406757509,1772161841476,-353.40663009,0.00010199,2]
[406757510,1772161841485,-477.79794094,0.00010199,2]
[406757511,1772161841494,-500.0,0.00010199,2]
[406757512,1772161841503,-500.0,0.00010199,2]
[406757513,1772161841514,-500.0,0.00010199,2]
[406757514,1772161841523,-500.0,0.00010199,2]
[406757515,1772161841532,-500.0,0.00010199,2]
[406757516,1772161841541,-500.0,0.00010199,2]
[406757517,1772161841550,-500.0,0.00010199,2]
[406757518,1772161841559,-500.0,0.00010199,2]
[406757519,1772161841569,-500.0,0.00010199,2]
[406757520,1772161841578,-500.0,0.00010199,2]
[406757521,1772161841587,-500.0,0.00010199,2]
[406757522,1772161841595,-500.0,0.00010199,2]
[406757523,1772161841604,-500.0,0.00010199,2]
[406757524,1772161841613,-500.0,0.00010199,2]
[406757525,1772161841622,-500.0,0.00010199,2]
[406757526,1772161841631,-500.0,0.00010199,2]
[406757527,1772161841641,-500.0,0.00010199,2]
[406757528,1772161841651,-500.0,0.00010199,2]
[406757529,1772161841660,-500.0,0.00010199,2]
[406757530,1772161841669,-500.0,0.00010199,2]
[406757531,1772161841679,-500.0,0.00010199,2]
[406757532,1772161841688,-500.0,0.00010199,2]
[406757533,1772161841697,-500.0,0.00010199,2]
[406757534,1772161841706,-474.20399246,0.00010199,2]
[406757535,1772161841715,-500.0,0.00010199,2]
[406757536,1772161841724,-500.0,0.00010199,2]
[406757537,1772161841734,-500.0,0.00010199,2]
[406757538,1772161841744,-500.0,0.00010199,2]
[406757539,1772161841753,-500.0,0.00010199,2]
[406757540,1772161841762,-500.0,0.00010199,2]
[406757541,1772161841772,-500.0,0.00010199,2]
[406757542,1772161841782,-500.0,0.00010199,2]
[406757543,1772161841792,-500.0,0.00010199,2]
[406757544,1772161841801,-500.0,0.00010199,2]
[406757545,1772161841811,-500.0,0.00010199,2]
[406757546,1772161841820,-500.0,0.00010199,2]
[406757547,1772161841830,-500.0,0.00010199,2]
[406757548,1772161841839,-500.0,0.00010199,2]
[406757549,1772161841849,-500.0,0.00010199,2]
[406757550,1772161841859,-500.0,0.00010199,2]
[406757551,1772161841868,-164.19977121,0.00010199,2]
[406757552,1772161841877,-500.0,0.00010199,2]
[406757553,1772161841887,-500.0,0.00010199,2]
[406757554,1772161841896,-500.0,0.00010199,2]
[406757555,1772161841906,-500.0,0.00010199,2]
[406757556,1772161841915,-500.0,0.00010199,2]
[406757557,1772161841925,-500.0,0.00010199,2]
[406757558,1772161841934,-500.0,0.00010199,2]
[406757559,1772161841943,-500.0,0.00010199,2]
[406757560,1772161841953,-500.0,0.00010199,2]
[406757561,1772161841963,-500.0,0.00010199,2]
[406757562,1772161841973,-500.0,0.00010199,2]
[406757563,1772161841983,-500.0,0.00010199,2]
[406757564,1772161841992,-500.0,0.00010199,2]
[406757565,1772161842002,-500.0,0.00010199,2]
[406757566,1772161842011,-500.0,0.00010199,2]
[406757567,1772161842021,-500.0,0.00010199,2]
[406757568,1772161842030,-500.0,0.00010199,2]
[406757569,1772161842039,-500.0,0.00010199,2]
[406757570,1772161842049,-329.31687837,0.00010199,2]
[406757571,1772161842057,-500.0,0.00010199,2]
[406757572,1772161842067,-500.0,0.00010199,2]
[406757573,1772161842076,-500.0,0.00010199,2]
[406757574,1772161842085,-500.0,0.00010199,2]
[406757575,1772161842094,-500.0,0.00010199,2]
[406757576,1772161842104,-500.0,0.00010199,2]
[406757577,1772161842113,-500.0,0.00010199,2]
[406757578,1772161842123,-500.0,0.00010199,2]
[406757579,1772161842132,-500.0,0.00010199,2]
[406757580,1772161842141,-500.0,0.00010199,2]
[406757581,1772161842150,-500.0,0.00010199,2]
[406757582,1772161842160,-500.0,0.00010199,2]
[406757583,1772161842169,-500.0,0.00010199,2]
[406757584,1772161842178,-500.0,0.00010199,2]
[406757585,1772161842187,-500.0,0.00010199,2]
[406757586,1772161842196,-200.0,0.00010199,2]
[406757587,1772161842206,-500.0,0.00010199,2]
[406757588,1772161842215,-399.11457375,0.000102,2]
[406757589,1772161842224,-500.0,0.000103,2]
[406757590,1772161842234,-500.0,0.000103,2]
[406757591,1772161842243,-600.0,0.000103,2]
[406757592,1772161842252,-600.0,0.000103,2]
[406757593,1772161842262,-600.0,0.000103,2]
[406757594,1772161842271,-600.0,0.000103,2]
[406757595,1772161842281,-600.0,0.000103,2]
[406757596,1772161842291,-500.0,0.000103,2]
[406757597,1772161842301,-600.0,0.000103,2]
[406757598,1772161842311,-500.0,0.000103,2]
[406757599,1772161842320,-600.0,0.000103,2]
[406757600,1772161842330,-500.0,0.000103,2]
[406757601,1772161842339,-650.4413196,0.000103,2]
[406757602,1772161842348,-600.0,0.000103,2]
[406757603,1772161842357,-500.0,0.000103,2]
[406757604,1772161842366,-600.0,0.000103,2]
[406757605,1772161842375,-600.0,0.000103,2]
[406757606,1772161842385,-600.0,0.000103,2]
[406757607,1772161842394,-500.0,0.000103,2]
[406757608,1772161842404,-600.0,0.000103,2]
[406757609,1772161842413,-500.0,0.000103,2]
[406757610,1772161842422,-501.24297214,0.000103,2]
[406757611,1772161842432,-600.0,0.000103,2]
[406757612,1772161842441,-500.0,0.000103,2]
[406757613,1772161842644,-500.0,0.000103,2]
[406757614,1772161842656,-600.0,0.000103,2]
[406757615,1772161842666,-500.0,0.000103,2]
[406757616,1772161842675,-500.0,0.000103,2]
[406757617,1772161842684,-500.0,0.000103,2]
[406757618,1772161842694,-500.0,0.000103,2]
[406757619,1772161842703,-500.0,0.000103,2]
[406757620,1772161842712,-500.0,0.000103,2]
[406757621,1772161842722,-500.0,0.000103,2]
[406757622,1772161842732,-500.0,0.000103,2]
[406757623,1772161842741,-500.0,0.000103,2]
[406757624,1772161842750,-500.0,0.000103,2]
[406757625,1772161842760,-500.0,0.000103,2]
[406757626,1772161842769,-500.0,0.000103,2]
[406757627,1772161842778,-504.87317304,0.000103,2]
[406757628,1772161842787,-500.0,0.000103,2]
[406757629,1772161842797,-500.0,0.000103,2]
[406757630,1772161842807,-500.0,0.000103,2]
[406757631,1772161842818,-600.0,0.000103,2]
[406757632,1772161842827,-500.0,0.000103,2]
[406757633,1772161842837,-600.0,0.000103,2]
[406757634,1772161842846,-600.0,0.000103,2]
[406757635,1772161842856,-500.0,0.000103,2]
[406757636,1772161842866,-500.0,0.000103,2]
[406757637,1772161842876,-600.0,0.000103,2]
[406757638,1772161842886,-500.0,0.000103,2]
[406757639,1772161842895,-500.0,0.000103,2]
[406757640,1772161842904,-500.0,0.000103,2]
[406757641,1772161842913,-501.28875242,0.000103,2]
[406757642,1772161842923,-600.0,0.000103,2]
[406757643,1772161842932,-500.0,0.000103,2]
[406757644,1772161842941,-500.0,0.000103,2]
[406757645,1772161842950,-600.0,0.000103,2]
[406757646,1772161842960,-500.0,0.000103,2]
[406757647,1772161842969,-500.0,0.000103,2]
[406757648,1772161842979,-600.0,0.000103,2]
[406757649,1772161842988,-500.0,0.000103,2]
[406757650,1772161842998,-600.0,0.000103,2]
[406757651,1772161843007,-600.0,0.000103,2]
[406757652,1772161843017,-600.0,0.000103,2]
[406757654,1772161843027,-600.0,0.000103,2]
[406757657,1772161843037,-600.0,0.000103,2]
[406757658,1772161843046,-600.0,0.000103,2]
[406757661,1772161843056,-700.0,0.000103,2]
[406757663,1772161843066,-500.0,0.000103,2]
[406757665,1772161843075,-500.0,0.000103,2]
[406757667,1772161843084,-500.0,0.000103,2]
[406757669,1772161843093,-500.0,0.000103,2]
[406757670,1772161843103,-500.0,0.000103,2]
[406757671,1772161843113,-500.0,0.000103,2]
[406757672,1772161843122,-783.85,0.0001038,2]
[406757673,1772161843132,-823.0,0.00010412,2]
[406757674,1772161843141,-3292.0,0.00010412,2]
[406757675,1772161843150,-783.85,0.00010644,2]
[406757676,1772161843160,-269.31028465,0.000107,2]
[406757677,1772161843169,-736.0,0.00010805,2]
[406757678,1772161843178,-503.23770481,0.00010829,2]
[406757679,1772161843187,-617.57611453,0.00010829,2]
[406757680,1772161843197,-637.12023928,0.00010829,2]
[406757681,1772161843206,-206.97757255,0.00010829,2]
[406757682,1772161843215,-429.16626575,0.00010829,2]
[406757683,1772161843224,-500.0,0.00010829,2]
[406757684,1772161843233,-500.0,0.00010829,2]
[406757685,1772161843242,-502.95920564,0.00010829,2]
[406757686,1772161843252,-167.01315032,0.00010829,2]
[406757687,1772161843261,-500.0,0.00010829,2]
[406757688,1772161843271,-502.54598261,0.00010829,2]
[406757689,1772161843280,-500.0,0.00010829,2]
[406757690,1772161843290,-505.72694533,0.00010829,2]
[406757691,1772161843299,-6000.0,0.000109,3]
[406757692,1772161843308,-4250.16582502,0.000109,2]
[406757693,1772161843320,-4250.16582501,0.000109,2]
[406757694,1772161843329,-4250.16582501,0.000109,2]
[406757695,1772161843338,-783.85,0.00010909,2]
[406757696,1772161843348,-166.66,0.00010959,2]
[406757697,1772161843357,-150.0,0.00010959,2]
[406757698,1772161843367,-166.66,0.00011068,2]
[406757699,1772161843376,-33395.49873543,0.00011099,2]
[406757700,1772161843385,-33395.49873534,0.00011099,2]
[406757701,1772161843394,-34776.9107203,0.00011099,2]
[406757702,1772161843404,-34776.91072026,0.00011099,2]
[406757703,1772161843413,-1457.2734832,0.000111,3]
[406757704,1772161843423,-3983.51746822,0.000111,3]
[406757705,1772161843432,-2810.15107856,0.000111,3]
[406757706,1772161843441,-7278.71450163,0.000111,3]
[406757707,1772161843452,-783.85,0.00011173,2]
[406757708,1772161843464,-166.66,0.00011178,2]
[406757709,1772161843479,-166.66,0.00011288,2]
[406757710,1772161843489,-32885.2992,0.00011364,2]
[406757711,1772161843500,-187.0408,0.00011364,2]
[406757712,1772161843510,-176.53396156,0.00011377,2]
[406757713,1772161843519,-1000.0,0.00011377,2]
[406757714,1772161843528,-1000.0,0.00011377,2]
[406757715,1772161843537,-1000.0,0.00011377,2]
[406757716,1772161843548,-166.66,0.00011397,2]
[406757717,1772161843560,-1152.0,0.00011454,2]
[406757718,1772161843570,-4609.0,0.00011454,2]
[406757719,1772161843579,-166.66,0.00011507,2]
[406757720,1772161843588,-34776.91072026,0.00011545,2]
[406757721,1772161843597,-33395.49873534,0.00011669,2]
[406757722,1772161843607,-276.81765237,0.00011674,2]